[Event "World Senior chT-50 2019"]
[Site "Rhodes"]
[Date "2019.04.18"]
[Round "3.39"]
[White "Escofet, Jaime"]
[Black "Neave, George"]
[Result "1/2-1/2"]
[ECO "A48"]
[WhiteElo "1970"]
[BlackElo "2101"]
[PlyCount "104"]
[EventDate "2019.04.16"]
[EventType "team-tourn"]
[EventCountry "GRE"]
[TimeControl "40/5400+30:1800+30"]

1. d4 {[%emt 0:00:00]} Nf6 {[%emt 0:00:00]} 2. Bf4 {[%emt 0:00:00]} g6 {[%emt 0:00:00]} 3. e3 {[%emt 0:00:00]} Bg7 {[%emt 0:00:04]} 4. Nf3 {[%emt 0:00:00]} d6 {[%emt 0:00:43]} 5. Be2 {[%emt 0:00:13]} O-O {[%emt 0:00:07]} 6. h3 {[%emt 0:00:03]} Nbd7 {[%emt 0:00:30]} 7. O-O {[%emt 0:00:15]} Qe8 {[%emt 0:00:05]} 8. Bh2 {[%emt 0:00:12]} e5 {[%emt 0:00:11]} 9. c4 {[%emt 0:00:20]} Ne4 {[%emt 0:00:16]} 10. Nc3 {[%emt 0:00:19]} Nxc3 {[%emt 0:00:09]} 11. bxc3 {[%emt 0:00:08]} Qe7 {[%emt 0:03:03]} 12. Rb1 {[%emt 0:00:53]} b6 {[%emt 0:10:13]} 13. Nd2 {[%emt 0:06:49]} Bb7 {[%emt 0:05:12]} 14. Bf3 {[%emt 0:00:20]} Bxf3 {[%emt 0:00:26]} 15. Nxf3 {[%emt 0:02:04]} e4 {[%emt 0:15:09]} 16. Nd2 {[%emt 0:02:46]} f5 {[%emt 0:00:11]} 17. Qc2 {[%emt 0:04:00]} Rae8 {[%emt 0:01:03]} 18. Rbe1 {[%emt 0:00:30]} Nf6 {[%emt 0:01:07]} 19. f3 {[%emt 0:08:48]} exf3 {[%emt 0:00:32]} 20. Rxf3 {[%emt 0:00:08]} Ne4 {[%emt 0:01:51]} 21. Nxe4 {[%emt 0:01:29]} fxe4 {[%emt 0:00:26]} 22. Rxf8+ {[%emt 0:00:57]} Rxf8 {[%emt 0:00:16]} 23. Qe2 {[%emt 0:00:36]} Bh6 {[%emt 0:01:17]} 24. Bg3 {[%emt 0:04:17]} Qf7 {[%emt 0:04:08]} 25. Kh2 {[%emt 0:02:55]} Qf6 {[%emt 0:05:03]} 26. Kg1 {[%emt 0:08:12]} Bg5 {[%emt 0:01:27]} 27. Qc2 {[%emt 0:04:33]} Qf5 {[%emt 0:01:02]} 28. Qa4 {[%emt 0:03:26]} h5 {[%emt 0:01:39]} 29. Qc2 {[%emt 0:00:16]} h4 {[%emt 0:04:05]} 30. Bf4 {[%emt 0:11:36]} Be7 {[%emt 0:03:51]} 31. Qe2 {[%emt 0:01:20]} g5 {[%emt 0:00:45]} 32. Bh2 {[%emt 0:00:05]} c6 {[%emt 0:04:39]} 33. Rf1 {[%emt 0:10:30]} Qxf1+ {[%emt 0:00:52]} 34. Qxf1 {[%emt 0:00:08]} Rxf1+ {[%emt 0:00:02]} 35. Kxf1 {[%emt 0:00:07]} Kf7 {[%emt 0:00:40]} 36. Ke2 {[%emt 0:00:09]} Ke6 {[%emt 0:00:41]} 37. Kd2 {[%emt 0:00:54]} d5 {[%emt 0:04:42]} 38. cxd5+ {[%emt 0:00:54]} Kxd5 {[%emt 0:00:15]} 39. Be5 {[%emt 0:00:24]} b5 {[%emt 0:01:10]} 40. Kc2 {[%emt 0:00:00]} a5 {[%emt 0:00:00]} 41. Bc7 {[%emt 0:01:17]} a4 {[%emt 0:01:34]} 42. Bb6 {[%emt 0:01:46]} Kc4 {[%emt 0:01:52]} 43. Ba7 {[%emt 0:10:57]} c5 {[%emt 0:05:34]} 44. Bb6 {[%emt 0:02:21]} cxd4 {[%emt 0:01:19]} 45. Bxd4 {[%emt 0:03:27]} Bc5 {[%emt 0:05:10]} 46. Bxc5 {[%emt 0:07:04]} Kxc5 {[%emt 0:00:07]} 47. Kb2 {[%emt 0:00:07]} b4 {[%emt 0:04:02]} 48. cxb4+ {[%emt 0:00:24]} Kxb4 {[%emt 0:00:07]} 49. Kc2 {[%emt 0:00:12]} Ka3 {[%emt 0:02:28]} 50. Kb1 {[%emt 0:00:07]} Kb4 {[%emt 0:00:05]} 51. Kc2 {[%emt 0:00:08]} Ka3 {[%emt 0:02:32]} 52. Kb1 {[%emt 0:00:14]} Kb4 {[%emt 0:00:04]} 1/2-1/2

[Event "World Senior chT-50 2019"]
[Site "Rhodes"]
[Date "2019.04.18"]
[Round "3.40"]
[White "Smith, Peter R"]
[Black "Barboza, Mauro"]
[Result "1/2-1/2"]
[ECO "A14"]
[WhiteElo "2038"]
[BlackElo "1873"]
[PlyCount "135"]
[EventDate "2019.04.16"]
[EventType "team-tourn"]
[EventCountry "GRE"]
[TimeControl "40/5400+30:1800+30"]

1. Nf3 {[%emt 0:00:00]} Nf6 {[%emt 0:00:00]} 2. c4 {[%emt 0:00:00]} e6 {[%emt 0:00:00]} 3. b3 {[%emt 0:00:43]} d5 {[%emt 0:00:04]} 4. Bb2 {[%emt 0:00:21]} Be7 {[%emt 0:00:19]} 5. g3 {[%emt 0:01:12]} O-O {[%emt 0:01:27]} 6. Bg2 {[%emt 0:00:11]} c6 {[%emt 0:00:26]} 7. O-O {[%emt 0:00:24]} Nbd7 {[%emt 0:00:09]} 8. d3 {[%emt 0:00:50]} Rb8 {[%emt 0:06:40]} 9. Nbd2 {[%emt 0:01:41]} Qa5 {[%emt 0:04:52]} 10. a3 {[%emt 0:02:31]} dxc4 {[%emt 0:02:22]} 11. bxc4 {[%emt 0:02:58]} Qh5 {[%emt 0:02:49]} 12. a4 {[%emt 0:06:47]} e5 {[%emt 0:10:27]} 13. Qc2 {[%emt 0:04:39]} Re8 {[%emt 0:08:25]} 14. a5 {[%emt 0:04:49]} a6 {[%emt 0:01:44]} 15. Ba3 {[%emt 0:09:27]} Bxa3 {[%emt 0:15:33]} 16. Rxa3 {[%emt 0:00:02]} Nc5 {[%emt 0:01:27]} 17. Rb1 {[%emt 0:11:12]} e4 {[%emt 0:08:50]} 18. Nxe4 {[%emt 0:01:09]} Ncxe4 {[%emt 0:01:13]} 19. dxe4 {[%emt 0:00:04]} Rxe4 {[%emt 0:03:31]} 20. Rd1 {[%emt 0:10:48]} Re8 {[%emt 0:03:30]} 21. Qd2 {[%emt 0:12:21]} Bg4 {[%emt 0:09:24]} 22. Qf4 {[%emt 0:07:15]} Rbd8 {[%emt 0:02:16]} 23. Rxd8 {[%emt 0:08:00]} Rxd8 {[%emt 0:00:09]} 24. Ra1 {[%emt 0:02:55]} Qc5 {[%emt 0:00:59]} 25. Qc7 {[%emt 0:02:25]} Re8 {[%emt 0:00:24]} 26. Qxb7 {[%emt 0:01:22]} Rxe2 {[%emt 0:02:59]} 27. Qb6 {[%emt 0:01:19]} Qxc4 {[%emt 0:02:22]} 28. Nd4 {[%emt 0:02:26]} Qc3 {[%emt 0:03:21]} 29. Nxe2 {[%emt 0:01:22]} Qxa1+ {[%emt 0:00:10]} 30. Bf1 {[%emt 0:00:01]} h5 {[%emt 0:00:34]} 31. Qxa6 {[%emt 0:00:18]} Bh3 {[%emt 0:01:52]} 32. Nf4 {[%emt 0:00:26]} Bxf1 {[%emt 0:00:14]} 33. Qxf1 {[%emt 0:00:01]} Qxa5 {[%emt 0:00:15]} 34. Qc4 {[%emt 0:00:55]} Qb5 {[%emt 0:00:45]} 35. Qc2 {[%emt 0:01:38]} g6 {[%emt 0:01:00]} 36. Nxg6 {[%emt 0:00:38]} Nd5 {[%emt 0:03:32]} 37. Ne5 {[%emt 0:00:51]} Ne7 {[%emt 0:00:38]} 38. Nd7 {[%emt 0:01:03]} Nd5 {[%emt 0:00:48]} 39. Qf5 {[%emt 0:00:36]} Qb2 {[%emt 0:00:56]} 40. Qg5+ {[%emt 0:00:00]} Kh8 {[%emt 0:00:00]} 41. Qxh5+ {[%emt 0:03:03]} Kg7 {[%emt 0:02:10]} 42. Qg5+ {[%emt 0:00:45]} Kh8 {[%emt 0:00:03]} 43. Qe5+ {[%emt 0:02:23]} Qxe5 {[%emt 0:00:05]} 44. Nxe5 {[%emt 0:00:01]} c5 {[%emt 0:00:39]} 45. Nxf7+ {[%emt 0:00:13]} Kg7 {[%emt 0:00:05]} 46. Nd6 {[%emt 0:00:18]} Nc3 {[%emt 0:00:32]} 47. Kf1 {[%emt 0:00:34]} Kf6 {[%emt 0:00:09]} 48. h4 {[%emt 0:03:28]} Ke5 {[%emt 0:00:14]} 49. h5 {[%emt 0:01:40]} Nd5 {[%emt 0:00:44]} 50. h6 {[%emt 0:04:29]} Nf6 {[%emt 0:00:49]} 51. Nb5 {[%emt 0:02:07]} Ke4 {[%emt 0:00:35]} 52. Ke2 {[%emt 0:00:54]} Kf5 {[%emt 0:00:12]} 53. Nd6+ {[%emt 0:02:48]} Kg6 {[%emt 0:01:54]} 54. Kf3 {[%emt 0:01:09]} Kxh6 {[%emt 0:00:13]} 55. Kf4 {[%emt 0:01:03]} Kg6 {[%emt 0:00:19]} 56. Nc4 {[%emt 0:01:34]} Nd5+ {[%emt 0:03:48]} 57. Ke5 {[%emt 0:01:09]} Nc3 {[%emt 0:00:26]} 58. f4 {[%emt 0:01:24]} Ne2 {[%emt 0:01:07]} 59. f5+ {[%emt 0:00:57]} Kg5 {[%emt 0:00:29]} 60. f6 {[%emt 0:01:10]} Kg6 {[%emt 0:01:18]} 61. g4 {[%emt 0:01:21]} Nd4 {[%emt 0:01:26]} 62. Nd6 {[%emt 0:03:18]} Nf3+ {[%emt 0:02:37]} 63. Ke6 {[%emt 0:02:38]} Nd4+ {[%emt 0:00:16]} 64. Kd5 {[%emt 0:00:43]} Kxf6 {[%emt 0:00:15]} 65. Ne4+ {[%emt 0:00:08]} Kg6 {[%emt 0:00:22]} 66. Kxc5 {[%emt 0:00:07]} Nf3 {[%emt 0:00:16]} 67. Kd6 {[%emt 0:00:15]} Nh2 {[%emt 0:00:42]} 68. Ke5 {[%emt 0:01:20]} 1/2-1/2

[Event "World Senior chT-50 2019"]
[Site "Rhodes"]
[Date "2019.04.19"]
[Round "4.1"]
[White "Shabalov, Alexander"]
[Black "Vaganian, Rafael A"]
[Result "1-0"]
[ECO "C05"]
[WhiteElo "2510"]
[BlackElo "2535"]
[PlyCount "61"]
[EventDate "2019.04.16"]
[EventType "team-tourn"]
[EventCountry "GRE"]
[TimeControl "40/5400+30:1800+30"]

1. e4 {[%emt 0:00:00]} e6 {[%emt 0:00:00]} 2. d4 {[%emt 0:00:00]} d5 {[%emt 0:00:00]} 3. Nc3 {[%emt 0:00:00]} Nf6 {[%emt 0:00:20]} 4. e5 {[%emt 0:00:00]} Nfd7 {[%emt 0:00:06]} 5. f4 {[%emt 0:00:09]} c5 {[%emt 0:00:13]} 6. Nf3 {[%emt 0:00:05]} Nc6 {[%emt 0:00:05]} 7. Ne2 {[%emt 0:00:05]} b5 {[%emt 0:05:18]} 8. a3 {[%emt 0:00:33]} b4 {[%emt 0:05:27]} 9. axb4 {[%emt 0:02:20]} cxb4 {[%emt 0:00:07]} 10. f5 {[%emt 0:03:01]} exf5 {[%emt 0:02:10]} 11. Nf4 {[%emt 0:01:43]} Ndb8 {[%emt 0:02:30]} 12. Bb5 {[%emt 0:09:09]} g5 {[%emt 0:03:34]} 13. Nh5 {[%emt 0:21:03]} Be7 {[%emt 0:01:46]} 14. Nf6+ {[%emt 0:08:37]} Bxf6 {[%emt 0:00:22]} 15. exf6 {[%emt 0:00:05]} h6 {[%emt 0:00:16]} 16. h4 {[%emt 0:05:51]} g4 {[%emt 0:05:30]} 17. Ne5 {[%emt 0:00:55]} Qxf6 {[%emt 0:00:06]} 18. O-O {[%emt 0:01:48]} g3 {[%emt 0:33:15]} 19. Nf3 {[%emt 0:21:41]} O-O {[%emt 0:09:10]} 20. Bf4 {[%emt 0:00:44]} a5 {[%emt 0:00:10]} 21. Qd2 {[%emt 0:02:54]} Kh7 {[%emt 0:00:27]} 22. Bxg3 {[%emt 0:03:57]} Rg8 {[%emt 0:01:55]} 23. Bf4 {[%emt 0:00:34]} Ba6 {[%emt 0:00:54]} 24. Bxa6 {[%emt 0:01:08]} Rxa6 {[%emt 0:00:19]} 25. Qd3 {[%emt 0:00:38]} Ra7 {[%emt 0:00:32]} 26. Rae1 {[%emt 0:02:47]} Re7 {[%emt 0:02:01]} 27. Ne5 {[%emt 0:01:31]} Nxe5 {[%emt 0:00:34]} 28. Rxe5 {[%emt 0:01:46]} Qg6 {[%emt 0:03:43]} 29. g3 {[%emt 0:01:31]} Rxe5 {[%emt 0:01:10]} 30. Bxe5 {[%emt 0:00:08]} Nd7 {[%emt 0:00:46]} 31. h5 {[%emt 0:00:32]} 1-0

[Event "World Senior chT-50 2019"]
[Site "Rhodes"]
[Date "2019.04.19"]
[Round "4.3"]
[White "Ehlvest, Jaan"]
[Black "Movsziszian, Karen"]
[Result "1/2-1/2"]
[ECO "B07"]
[WhiteElo "2521"]
[BlackElo "2485"]
[PlyCount "90"]
[EventDate "2019.04.16"]
[EventType "team-tourn"]
[EventCountry "GRE"]
[TimeControl "40/5400+30:1800+30"]

1. d4 {[%emt 0:00:00]} d6 {[%emt 0:00:28]} 2. e4 {[%emt 0:01:28]} Nf6 {[%emt 0:00:03]} 3. f3 {[%emt 0:00:27]} Nbd7 {[%emt 0:03:28]} 4. c4 {[%emt 0:01:23]} e5 {[%emt 0:00:04]} 5. d5 {[%emt 0:00:50]} Be7 {[%emt 0:00:11]} 6. Nc3 {[%emt 0:00:25]} a5 {[%emt 0:02:10]} 7. Be3 {[%emt 0:00:15]} Nh5 {[%emt 0:00:16]} 8. Qd2 {[%emt 0:31:09]} h6 {[%emt 0:00:06]} 9. Bf2 {[%emt 0:00:09]} g6 {[%emt 0:05:07]} 10. Nge2 {[%emt 0:05:07]} f5 {[%emt 0:04:39]} 11. exf5 {[%emt 0:04:11]} gxf5 {[%emt 0:01:45]} 12. Ng3 {[%emt 0:03:31]} Ng7 {[%emt 0:03:01]} 13. Bd3 {[%emt 0:02:26]} Nc5 {[%emt 0:07:32]} 14. Bc2 {[%emt 0:00:25]} Bg5 {[%emt 0:04:31]} 15. Qe2 {[%emt 0:05:26]} O-O {[%emt 0:02:24]} 16. O-O {[%emt 0:00:48]} Bd7 {[%emt 0:08:02]} 17. a3 {[%emt 0:12:49]} a4 {[%emt 0:10:42]} 18. Bxc5 {[%emt 0:03:02]} dxc5 {[%emt 0:00:01]} 19. Qd3 {[%emt 0:00:11]} Ra6 {[%emt 0:07:32]} 20. Rae1 {[%emt 0:00:40]} Bf4 {[%emt 0:07:05]} 21. Nce2 {[%emt 0:01:29]} Bg5 {[%emt 0:02:57]} 22. Nc3 {[%emt 0:00:10]} Qf6 {[%emt 0:03:34]} 23. Nb5 {[%emt 0:07:41]} Bxb5 {[%emt 0:06:43]} 24. cxb5 {[%emt 0:00:07]} Ra5 {[%emt 0:00:17]} 25. Qc4 {[%emt 0:08:24]} Qd6 {[%emt 0:04:10]} 26. Bxa4 {[%emt 0:02:10]} h5 {[%emt 0:00:06]} 27. Ne2 {[%emt 0:01:57]} Be3+ {[%emt 0:02:28]} 28. Kh1 {[%emt 0:00:02]} Raa8 {[%emt 0:00:07]} 29. Bc2 {[%emt 0:01:08]} Rae8 {[%emt 0:00:49]} 30. b6 {[%emt 0:01:53]} Qxb6 {[%emt 0:01:23]} 31. d6+ {[%emt 0:00:40]} Kh8 {[%emt 0:00:04]} 32. dxc7 {[%emt 0:01:59]} Qxc7 {[%emt 0:00:43]} 33. Nc3 {[%emt 0:00:28]} Bd4 {[%emt 0:00:55]} 34. Nb5 {[%emt 0:00:05]} Qd8 {[%emt 0:00:54]} 35. b4 {[%emt 0:00:26]} b6 {[%emt 0:00:55]} 36. Rd1 {[%emt 0:00:17]} Ne6 {[%emt 0:01:29]} 37. Bb3 {[%emt 0:00:18]} Qg5 {[%emt 0:01:04]} 38. Qc2 {[%emt 0:00:51]} h4 {[%emt 0:00:36]} 39. Bxe6 {[%emt 0:02:20]} Rxe6 {[%emt 0:00:02]} 40. f4 {[%emt 0:00:00]} Qg4 {[%emt 0:00:00]} 41. h3 {[%emt 0:09:21]} Qg7 {[%emt 0:23:24]} 42. Nxd4 {[%emt 0:03:33]} exd4 {[%emt 0:00:17]} 43. bxc5 bxc5 44. Qxc5 {[%emt 0:00:02]} Re2 45. Rg1 {[%emt 0:00:04]} Re4 1/2-1/2

[Event "World Senior chT-50 2019"]
[Site "Rhodes"]
[Date "2019.04.19"]
[Round "4.4"]
[White "Petrosian, Arshak B"]
[Black "Yermolinsky, Alex"]
[Result "1/2-1/2"]
[ECO "A37"]
[WhiteElo "2470"]
[BlackElo "2508"]
[PlyCount "90"]
[EventDate "2019.04.16"]
[EventType "team-tourn"]
[EventCountry "GRE"]
[TimeControl "40/5400+30:1800+30"]

1. Nf3 {[%emt 0:00:00]} c5 {[%emt 0:00:00]} 2. c4 {[%emt 0:00:02]} Nc6 {[%emt 0:00:10]} 3. Nc3 {[%emt 0:01:33]} e5 {[%emt 0:01:36]} 4. g3 {[%emt 0:02:29]} g6 {[%emt 0:00:21]} 5. Bg2 {[%emt 0:00:10]} Bg7 {[%emt 0:00:05]} 6. O-O {[%emt 0:00:13]} d6 {[%emt 0:00:15]} 7. a3 {[%emt 0:01:43]} Nge7 {[%emt 0:00:56]} 8. d3 {[%emt 0:00:36]} O-O {[%emt 0:00:32]} 9. Rb1 {[%emt 0:00:19]} a5 {[%emt 0:00:46]} 10. Ne1 {[%emt 0:01:07]} Be6 {[%emt 0:00:28]} 11. Nd5 {[%emt 0:02:30]} Rb8 {[%emt 0:01:32]} 12. Bg5 {[%emt 0:15:12]} f6 {[%emt 0:06:28]} 13. Bd2 {[%emt 0:00:53]} b5 {[%emt 0:01:46]} 14. cxb5 {[%emt 0:18:39]} Rxb5 {[%emt 0:05:25]} 15. Qa4 {[%emt 0:07:58]} Nd4 {[%emt 0:06:03]} 16. e3 {[%emt 0:01:24]} Nxd5 {[%emt 0:05:22]} 17. exd4 {[%emt 0:00:28]} Qb6 {[%emt 0:04:53]} 18. dxc5 {[%emt 0:04:15]} Rxc5 {[%emt 0:09:30]} 19. Nc2 {[%emt 0:08:14]} Rfc8 {[%emt 0:08:26]} 20. Ne3 {[%emt 0:01:52]} Nxe3 {[%emt 0:03:08]} 21. Bxe3 {[%emt 0:02:58]} Qb5 {[%emt 0:00:06]} 22. Qxb5 {[%emt 0:04:30]} Rxb5 {[%emt 0:00:07]} 23. b4 {[%emt 0:00:24]} d5 {[%emt 0:06:48]} 24. Bc5 {[%emt 0:05:55]} axb4 {[%emt 0:00:31]} 25. axb4 {[%emt 0:00:41]} Bf8 {[%emt 0:02:39]} 26. Bxf8 {[%emt 0:05:39]} Kxf8 {[%emt 0:00:11]} 27. f4 {[%emt 0:00:04]} Ke7 {[%emt 0:02:32]} 28. fxe5 {[%emt 0:03:34]} fxe5 {[%emt 0:00:06]} 29. Ra1 {[%emt 0:01:18]} Rxb4 {[%emt 0:10:11]} 30. Rfe1 {[%emt 0:01:45]} Kd6 {[%emt 0:02:46]} 31. Ra6+ {[%emt 0:00:42]} Rc6 {[%emt 0:00:06]} 32. Rxc6+ {[%emt 0:00:06]} Kxc6 {[%emt 0:00:05]} 33. Rxe5 {[%emt 0:00:06]} Kd6 {[%emt 0:00:08]} 34. Re2 {[%emt 0:06:51]} Bf5 {[%emt 0:01:25]} 35. Rd2 {[%emt 0:00:13]} Ke5 {[%emt 0:00:35]} 36. Kf2 {[%emt 0:01:41]} Kd4 {[%emt 0:00:13]} 37. Bf1 {[%emt 0:01:38]} Ra4 {[%emt 0:06:29]} 38. Rb2 {[%emt 0:00:41]} Bxd3 {[%emt 0:01:43]} 39. Rd2 {[%emt 0:00:22]} Ra3 {[%emt 0:00:08]} 40. h4 {[%emt 0:00:00]} h5 {[%emt 0:00:00]} 41. Bxd3 {[%emt 0:01:26]} Rxd3 {[%emt 0:07:24]} 42. Ra2 {[%emt 0:00:02]} Ke4 {[%emt 0:01:34]} 43. Ra6 {[%emt 0:00:56]} Kf5 {[%emt 0:20:34]} 44. Rd6 {[%emt 0:01:28]} d4 {[%emt 0:00:29]} 45. Kg2 {[%emt 0:03:39]} Ke5 {[%emt 0:01:38]} 1/2-1/2

[Event "World Senior chT-50 2019"]
[Site "Rhodes"]
[Date "2019.04.19"]
[Round "4.5"]
[White "Olafsson, Helgi"]
[Black "Speelman, Jon S"]
[Result "1/2-1/2"]
[ECO "C11"]
[WhiteElo "2506"]
[BlackElo "2509"]
[PlyCount "96"]
[EventDate "2019.04.16"]
[EventType "team-tourn"]
[EventCountry "GRE"]
[TimeControl "40/5400+30:1800+30"]

1. d4 {[%emt 0:00:00]} e6 {[%emt 0:00:00]} 2. e4 {[%emt 0:00:00]} d5 {[%emt 0:03:10]} 3. Nc3 {[%emt 0:00:03]} Nf6 {[%emt 0:00:11]} 4. e5 {[%emt 0:00:11]} Nfd7 {[%emt 0:00:06]} 5. f4 {[%emt 0:00:26]} c5 {[%emt 0:00:14]} 6. Nf3 {[%emt 0:00:06]} Nc6 {[%emt 0:00:41]} 7. Be3 {[%emt 0:00:29]} a6 {[%emt 0:01:13]} 8. Qd2 {[%emt 0:00:54]} cxd4 {[%emt 0:02:03]} 9. Nxd4 {[%emt 0:00:07]} Bc5 {[%emt 0:00:05]} 10. Nce2 {[%emt 0:08:20]} O-O {[%emt 0:04:07]} 11. g3 {[%emt 0:00:45]} Ndxe5 {[%emt 0:03:18]} 12. fxe5 {[%emt 0:01:17]} Nxe5 {[%emt 0:00:05]} 13. Qc3 {[%emt 0:06:09]} Bd6 {[%emt 0:07:53]} 14. Bh3 {[%emt 0:10:29]} Bd7 {[%emt 0:03:14]} 15. b3 {[%emt 0:00:16]} Ng6 {[%emt 0:06:51]} 16. O-O {[%emt 0:04:11]} e5 {[%emt 0:03:34]} 17. Bxd7 {[%emt 0:03:40]} exd4 {[%emt 0:01:38]} 18. Bxd4 {[%emt 0:00:08]} Qxd7 {[%emt 0:00:43]} 19. Bxg7 {[%emt 0:00:06]} Rac8 {[%emt 0:03:30]} 20. Qb2 {[%emt 0:01:00]} Rfe8 {[%emt 0:00:07]} 21. Nd4 {[%emt 0:07:38]} Bc5 {[%emt 0:03:57]} 22. Rf2 {[%emt 0:01:17]} Re4 {[%emt 0:08:39]} 23. Kh1 {[%emt 0:06:33]} Bxd4 {[%emt 0:01:06]} 24. Bxd4 {[%emt 0:00:11]} Qg4 {[%emt 0:00:10]} 25. c3 {[%emt 0:02:32]} Rce8 {[%emt 0:08:04]} 26. Qd2 {[%emt 0:03:26]} Qh5 {[%emt 0:14:47]} 27. Raf1 {[%emt 0:01:07]} Re2 {[%emt 0:00:27]} 28. Qd3 {[%emt 0:00:29]} Rxf2 {[%emt 0:01:45]} 29. Rxf2 {[%emt 0:00:51]} Re1+ {[%emt 0:01:11]} 30. Kg2 {[%emt 0:06:04]} Qg4 {[%emt 0:04:59]} 31. h3 {[%emt 0:00:22]} Qe4+ {[%emt 0:00:06]} 32. Qxe4 {[%emt 0:02:47]} dxe4 {[%emt 0:00:06]} 33. Rf6 {[%emt 0:10:13]} Re2+ {[%emt 0:01:26]} 34. Kf1 {[%emt 0:00:30]} Rxa2 {[%emt 0:00:04]} 35. Rb6 {[%emt 0:00:03]} f5 {[%emt 0:00:59]} 36. Rxb7 {[%emt 0:00:16]} f4 {[%emt 0:00:15]} 37. gxf4 {[%emt 0:01:43]} Nxf4 {[%emt 0:00:51]} 38. Rg7+ {[%emt 0:02:05]} Kf8 {[%emt 0:00:06]} 39. Rxh7 {[%emt 0:01:20]} Ne2 {[%emt 0:01:38]} 40. Rh4 {[%emt 0:00:00]} Nxd4 {[%emt 0:00:00]} 41. cxd4 {[%emt 0:06:26]} Rb2 {[%emt 0:01:37]} 42. Rxe4 {[%emt 0:01:53]} Rxb3 {[%emt 0:00:05]} 43. h4 {[%emt 0:00:12]} a5 {[%emt 0:00:26]} 44. Ke2 {[%emt 0:00:17]} a4 {[%emt 0:00:17]} 45. Re5 {[%emt 0:00:08]} a3 {[%emt 0:00:56]} 46. Ra5 {[%emt 0:00:06]} Rh3 {[%emt 0:00:04]} 47. Kd2 {[%emt 0:00:59]} Rxh4 {[%emt 0:00:09]} 48. Rxa3 {[%emt 0:00:06]} Rxd4+ {[%emt 0:00:04]} 1/2-1/2

[Event "World Senior chT-50 2019"]
[Site "Rhodes"]
[Date "2019.04.19"]
[Round "4.6"]
[White "Arkell, Keith C"]
[Black "Hjartarson, Johann"]
[Result "1-0"]
[ECO "A62"]
[WhiteElo "2467"]
[BlackElo "2520"]
[PlyCount "73"]
[EventDate "2019.04.16"]
[EventType "team-tourn"]
[EventCountry "GRE"]
[TimeControl "40/5400+30:1800+30"]

1. d4 {[%emt 0:00:00]} Nf6 {[%emt 0:03:17]} 2. Nf3 {[%emt 0:00:00]} e6 {[%emt 0:00:14]} 3. c4 {[%emt 0:00:00]} c5 {[%emt 0:00:15]} 4. d5 {[%emt 0:00:00]} exd5 {[%emt 0:00:05]} 5. cxd5 {[%emt 0:00:05]} d6 {[%emt 0:00:07]} 6. Nc3 {[%emt 0:00:06]} g6 {[%emt 0:00:06]} 7. g3 {[%emt 0:01:31]} Bg7 {[%emt 0:00:24]} 8. Bg2 {[%emt 0:00:04]} O-O {[%emt 0:00:08]} 9. O-O {[%emt 0:00:05]} a6 {[%emt 0:00:08]} 10. a4 {[%emt 0:00:07]} Re8 {[%emt 0:00:22]} 11. Nd2 {[%emt 0:02:45]} Nbd7 {[%emt 0:00:25]} 12. Nc4 {[%emt 0:04:02]} Ne5 {[%emt 0:01:06]} 13. Nxe5 {[%emt 0:00:07]} Rxe5 {[%emt 0:00:07]} 14. Bf4 {[%emt 0:00:05]} Re8 {[%emt 0:00:09]} 15. Qc2 {[%emt 0:00:06]} Ng4 {[%emt 0:02:07]} 16. h3 {[%emt 0:11:39]} Ne5 {[%emt 0:00:19]} 17. b3 {[%emt 0:00:07]} Rb8 {[%emt 0:06:22]} 18. Rab1 {[%emt 0:03:38]} Bd7 {[%emt 0:14:02]} 19. Rfc1 {[%emt 0:00:50]} b5 {[%emt 0:09:38]} 20. axb5 {[%emt 0:00:08]} axb5 {[%emt 0:03:21]} 21. b4 {[%emt 0:04:37]} cxb4 {[%emt 0:05:14]} 22. Rxb4 {[%emt 0:02:32]} Nc4 {[%emt 0:01:06]} 23. Ne4 {[%emt 0:24:37]} Rc8 {[%emt 0:10:20]} 24. Qd1 {[%emt 0:10:54]} Qe7 {[%emt 0:12:24]} 25. g4 {[%emt 0:12:03]} h6 {[%emt 0:08:36]} 26. Rcb1 {[%emt 0:08:55]} f5 {[%emt 0:03:35]} 27. Ng3 {[%emt 0:02:21]} fxg4 {[%emt 0:00:44]} 28. hxg4 {[%emt 0:00:07]} Bxg4 {[%emt 0:01:30]} 29. Rxb5 {[%emt 0:02:09]} Na3 {[%emt 0:01:24]} 30. Rb7 {[%emt 0:00:19]} Qf6 {[%emt 0:05:30]} 31. R1b4 {[%emt 0:00:25]} Rc2 {[%emt 0:04:03]} 32. Be3 {[%emt 0:04:38]} Rc4 {[%emt 0:04:11]} 33. Qa4 {[%emt 0:03:22]} Qa1+ {[%emt 0:03:12]} 34. Kh2 {[%emt 0:01:01]} Rec8 {[%emt 0:01:07]} 35. Ra7 {[%emt 0:01:59]} Rxb4 {[%emt 0:01:15]} 36. Qxb4 {[%emt 0:00:09]} Nc2 {[%emt 0:00:06]} 37. Qxg4 {[%emt 0:00:14]} 1-0

[Event "World Senior chT-50 2019"]
[Site "Rhodes"]
[Date "2019.04.19"]
[Round "4.8"]
[White "Plaskett, H James"]
[Black "Thorhallsson, Throstur"]
[Result "1/2-1/2"]
[ECO "D37"]
[WhiteElo "2437"]
[BlackElo "2425"]
[PlyCount "69"]
[EventDate "2019.04.16"]
[EventType "team-tourn"]
[EventCountry "GRE"]
[TimeControl "40/5400+30:1800+30"]

1. c4 {[%emt 0:00:00]} e6 {[%emt 0:00:01]} 2. d4 {[%emt 0:00:08]} d5 {[%emt 0:01:08]} 3. Nc3 {[%emt 0:00:26]} Nf6 {[%emt 0:00:59]} 4. Bf4 {[%emt 0:02:06]} Be7 {[%emt 0:04:33]} 5. Nf3 {[%emt 0:05:20]} O-O {[%emt 0:01:45]} 6. e3 {[%emt 0:04:14]} c6 {[%emt 0:07:58]} 7. c5 {[%emt 0:07:59]} Nbd7 {[%emt 0:01:55]} 8. h3 {[%emt 0:10:11]} Re8 {[%emt 0:07:37]} 9. b4 {[%emt 0:03:54]} Bf8 {[%emt 0:07:20]} 10. Bd3 {[%emt 0:01:23]} g6 {[%emt 0:00:57]} 11. O-O {[%emt 0:11:25]} Nh5 {[%emt 0:02:27]} 12. Bh2 {[%emt 0:02:10]} f5 {[%emt 0:03:54]} 13. Ne5 {[%emt 0:06:54]} Nxe5 {[%emt 0:10:55]} 14. Bxe5 {[%emt 0:00:20]} ({Reject} 14. dxe5 a5 $11) 14... Bg7 {[%emt 0:03:07]} 15. Ne2 $14 {[%emt 0:02:56]} Bd7 {[%emt 0:05:14]} 16. a4 {[%emt 0:02:38]} a6 {[%emt 0:07:14]} 17. Rb1 {[%emt 0:06:51]} Rf8 {[%emt 0:02:33]} 18. Bd6 {[%emt 0:06:57]} Rf7 {[%emt 0:01:12]} 19. b5 {[%emt 0:00:12]} axb5 {[%emt 0:01:24]} 20. axb5 {[%emt 0:00:02]} Qe8 {[%emt 0:05:52]} 21. bxc6 {[%emt 0:02:16]} Bxc6 {[%emt 0:00:27]} 22. f4 {[%emt 0:15:12]} Bf8 {[%emt 0:01:09]} 23. Bxf8 {[%emt 0:00:51]} Qxf8 {[%emt 0:01:06]} 24. g4 {[%emt 0:00:18]} fxg4 {[%emt 0:00:59]} 25. hxg4 {[%emt 0:00:02]} Nf6 {[%emt 0:00:33]} 26. Ng3 {[%emt 0:00:09]} Ra3 {[%emt 0:01:16]} 27. g5 {[%emt 0:01:37]} Ne4 {[%emt 0:03:44]} 28. Bxe4 {[%emt 0:00:05]} dxe4 {[%emt 0:00:52]} 29. Rb3 {[%emt 0:00:30]} Qa8 {[%emt 0:03:08]} 30. Rxa3 {[%emt 0:03:41]} Qxa3 {[%emt 0:00:02]} 31. Qc1 {[%emt 0:00:05]} Qb3 {[%emt 0:02:23]} 32. Rf2 {[%emt 0:00:17]} Rf8 {[%emt 0:00:46]} 33. Rb2 {[%emt 0:00:53]} Qa3 {[%emt 0:01:03]} 34. Rc2 {[%emt 0:00:10]} Qb3 {[%emt 0:05:08]} 35. Rb2 {[%emt 0:00:14]} 1/2-1/2